Cogmind - Beta 13 @@@ ROGUE MODE // 2024.04.01 @ 13:21:43 Player: Toa of Guts Result: Destroyed self with Mini Grenade Launcher Performance ------------- Evolutions (2) 1000 Regions Visited (4) 800 Robots Destroyed (57) 285 Value Destroyed (1675) 1675 Prototype IDs (1) 20 Alien Tech Used (0) 0 Bonus (22) 22 TOTAL SCORE: 3802 Bonus ------- High Alert Combat Kills 22 Cogmind --------- Core Integrity 0/550 Matter 72/300 Energy 157/160 System Corruption 0% Temperature Cool (9) Movement Walking (120) Location -8/Materials Parts ------- > --- POWER (1) -------- Light Nuclear Core > --- PROPULSION (2) --- Improved Aluminum Leg Carbon-fiber Leg > --- UTILITY (6) ------ Small Storage Unit Small Storage Unit Weight Redist. System Improved Signal Interpreter Terrain Scanner High-powered Tractor Beam > --- WEAPON (2) ------- Assault Cannon Mini Grenade Launcher > --- INVENTORY (8) ---- Light Deuterium Engine Aluminum Leg Advanced ECM Suite Light Armor Plating Reactive Plating Autogun Autogun Peak State ------------ > --- POWER ------------ Light Nuclear Core > --- PROPULSION ------- Aluminum Leg Carbon-fiber Leg > --- UTILITY ---------- Small Storage Unit Small Storage Unit Improved Signal Interpreter Advanced ECM Suite Reactive Plating > --- WEAPON ----------- Minigun Minigun > --- INVENTORY -------- Aluminum Leg Terrain Scanner Heavy Assault Rifle Autogun Assault Cannon Mining Claw [Rating: 26] Favorites ----------- Power Light Ion Engine Engine Light Ion Engine Power Core Light Nuclear Core Propulsion Aluminum Leg Treads Light Treads Leg Aluminum Leg Utility Small Storage Unit Device Recoil Stabilizer Storage Small Storage Unit Processor Signal Interpreter Protection Hardened Light Armor Plating Weapon Assault Rifle Energy Gun Improved EM Shotgun Ballistic Gun Assault Rifle Ballistic Cannon Assault Cannon Launcher Rocket Launcher Slashing Weapon Mining Claw Build | -11 -10 -10 -9 -8 ------- Run | Yrd Mat Min Mat Mat Slots Evolved 4 | . . . 2 2 Power . | . . . . . Propulsion . | . . . . . Utility 4 | . . . 2 2 Weapon . | . . . . . Parts Attached 53 | 7 2 4 18 22 Power 4 | 1 . 2 . 1 Engine 2 | 1 . 1 . . Core 2 | . . 1 . 1 Reactor . | . . . . . Propulsion 12 | 2 . . 5 5 Treads 5 | . . . 4 1 Leg 7 | 2 . . 1 4 Wheel . | . . . . . Hover . | . . . . . Flight . | . . . . . Utility 18 | 2 1 . 5 10 Device 6 | . . . 1 5 Storage 4 | 2 . . 2 . Processor 2 | . . . 1 1 Hackware . | . . . . . Protection 6 | . 1 . 1 4 Artifact . | . . . . . Weapon 19 | 2 1 2 8 6 Energy Gun 2 | 1 1 . . . Energy Cannon . | . . . . . Ballistic Gun 12 | 1 . 1 6 4 Ballistic Cannon 1 | . . . . 1 Launcher 3 | . . 1 1 1 Special Weapon . | . . . . . Impact Weapon . | . . . . . Slashing Weapon 1 | . . . 1 . Piercing Weapon . | . . . . . Special Melee Weapon . | . . . . . Unidentified Prototypes 1 | . 1 . . . Parts Lost 20 | . . . 10 10 Power 1 | . . . 1 . Propulsion 6 | . . . 3 3 Utility 5 | . . . 2 3 Weapon 8 | . . . 4 4 Highest Loss Streak 8 | . . . 7 8 To Critical Strikes . | . . . . . Average Slot Usage (%) 86 | . 99 100 75 78 Engine 6 | . 14 14 3 . Core 1 | . . . . 4 Treads 4 | . . . 9 5 Leg 16 | . 28 28 8 10 Device 2 | . . . . 9 Storage 17 | . 14 14 22 18 Processor 4 | . . . 4 9 Protection 8 | . 13 14 6 5 Energy Gun 1 | . 14 1 . . Ballistic Gun 16 | . 14 14 20 14 Launcher 4 | . . 12 . 1 Naked Turns . | . . . . . Heaviest Build 37 | 11 18 19 22 37 Greatest Support 40 | 20 20 20 40 40 Greatest Overweight (x) 8 | . . . 4 8 Average Overweight (x) . | . . . . . Largest Inventory Capacity 8 | 8 8 8 8 8 Average Capacity 7 | 6 8 8 8 8 Most Carried 8 | 5 6 8 8 8 Average Carried 6 | 3 5 6 6 6 Final Capacity 8 | 8 8 8 8 8 Final Carried 7 | 2 6 7 6 7 Class Distribution -------------------- 84% | Mutant 15% | Scavenger-Mutant Dominant Class ---------------- Mutant | -10/Materials Mutant | -10/Mines Mutant | -9/Materials Mutant | -8/Materials Resources | -11 -10 -10 -9 -8 ----------- Run | Yrd Mat Min Mat Mat Matter Collected 1586 | 173 . 195 524 694 Remotely 61 | . . . . 61 Salvage Created 1679 | . . 164 708 807 Parts 113 | . . 17 46 50 Haulers Intercepted . | . . . . . Recyclers Shooed . | . . . . . Parts Field Recycled . | . . . . . Retrieved Matter . | . . . . . Parts Self-Destructed . | . . . . . Prevented . | . . . . . Kills | -11 -10 -10 -9 -8 ------- Run | Yrd Mat Min Mat Mat Combat Hostiles Destroyed 46 | . . 7 16 23 Guns 32 | . . 3 13 16 Cannons 2 | . . . . 2 AOE 12 | . . 4 3 5 Classes Destroyed 9 | . . 2 5 2 Worker 3 | . . . . 3 Builder 2 | . . . 1 1 Tunneler 1 | . . . 1 . Recycler 2 | . . . 2 . Watcher 3 | . . . 3 . Swarmer 14 | . . 3 4 7 Grunt 22 | . . 4 7 11 Brawler 2 | . . . . 2 Sentry 8 | . . . 5 3 Best Kill Streak 8 | . . 3 8 7 Combat Bots Only 5 | . . 3 4 5 Max Kills in Single Turn 3 | . . 2 2 3 Gunslinging . | . . . . . Exploded 2 | . . 2 1 2 Melee . | . . . . . Uniques/NPCs Destroyed . | . . . . . Combat | -11 -10 -10 -9 -8 -------- Run | Yrd Mat Min Mat Mat Hostile Shots Fired 393 | . . 16 171 206 Missed 97 | . . 5 37 55 Damage Taken 4145 | . . 166 1735 2244 Core 1042 | . . 94 392 556 Absorbed by Shields . | . . . . . Core Remaining (%) 54 | 100 . 62 2 . Volleys Fired 170 | . . 12 73 85 Largest 2 | . . 2 2 2 Hottest 74 | . . 65 53 74 Shots Fired 299 | . . 22 142 135 Gun 262 | . . 17 133 112 Cannon 9 | . . . . 9 Launcher 28 | . . 5 9 14 Special . | . . . . . Kinetic 266 | . . 12 133 121 Thermal . | . . . . . Explosive 28 | . . 5 9 14 Electromagnetic 5 | . . 5 . . Robot Hit Streak 11 | . . 4 11 11 Robot Miss Streak 9 | . . 9 5 3 Penetration Max . | . . . . . Secondary Targets 3 | . . . 1 2 Max Gunslinging Chain 1 | . . . 1 1 Shots Hit Robots 164 | . . 5 72 87 Core Hits 94 | . . 9 41 44 Critical Kills . | . . . . . Critical Parts Destroyed 1 | . . . . 1 Critical Strikes 1 | . . . . 1 Destroy 1 | . . . . 1 Melee Attacks . | . . . . . Impact . | . . . . . Slashing . | . . . . . Piercing . | . . . . . Sneak Attacks . | . . . . . Combat Hostiles . | . . . . . Follow-up Attacks . | . . . . . Damage Inflicted 3965 | . . 276 1558 2131 Guns 2295 | . . 52 916 1327 Cannons 138 | . . . . 138 Explosions 1532 | . . 224 642 666 Melee . | . . . . . Ramming . | . . . . . Kinetic 2404 | . . 23 916 1465 Thermal 222 | . . 82 140 . Explosive 1310 | . . 142 502 666 Electromagnetic 29 | . . 29 . . Impact . | . . . . . Slashing . | . . . . . Piercing . | . . . . . Highest Corruption . | . . . . . Average Corruption . | . . . . . Corruption Purged . | . . . . . Corruption Blocked . | . . . . . Overload Shots . | . . . . . Overflow Damage 40 | . . . 18 22 Projectiles . | . . . . . Explosions 40 | . . . 18 22 Melee . | . . . . . Knockbacks 1 | . . . . 1 Impact . | . . . . . Kinetic 1 | . . . . 1 Secondary . | . . . . . Self-Inflicted Damage 151 | . . 44 55 52 Shots 5 | . . 1 2 2 Rammed . | . . . . . Targets Rammed . | . . . . . Kicked . | . . . . . Crushed . | . . . . . Highest Temperature 94 | . . 72 36 94 Average Temperature 25 | . . 22 9 34 Received Heat Transfer 1881 | . . 54 702 1125 Siege Activations . | . . . . . Robots Corrupted . | . . . . . Combat Hostiles . | . . . . . Parts Fried . | . . . . . Impact Corruptions . | . . . . . Robots Melted . | . . . . . Combat Hostiles . | . . . . . Parts Melted . | . . . . . Heat Transferred 200 | . . 100 100 . Parts Sabotaged . | . . . . . Parts Stolen . | . . . . . Parts Stripped . | . . . . . Power Chain Reactions . | . . . . . Alert | -11 -10 -10 -9 -8 ------- Run | Yrd Mat Min Mat Mat Peak Influence 420 | . . 220 330 420 Initial 109 | . . . 85 109 Average 161 | . . 75 201 260 Maximum Alert Level 2 | . . 1 1 2 Low Security (%) 57 | 100 100 88 52 17 Level 1 40 | . . 11 47 76 Level 2 1 | . . . . 6 Level 3 . | . . . . . Level 4 . | . . . . . Level 5 . | . . . . . High Security . | . . . . . Max Security . | . . . . . Squads Dispatched 5 | . 1 . 1 3 Investigation 1 | . 1 . . . Extermination . | . . . . . Reinforcement 1 | . . . 1 . Assault . | . . . . . Garrison 3 | . . . . 3 Intercept . | . . . . . Searches Triggered . | . . . . . Construction Impeded . | . . . . . Haulers Reinforced . | . . . . . Active Scanning Responses . | . . . . . Cargo Convoy Interrupts . | . . . . . Stealth | -11 -10 -10 -9 -8 --------- Run | Yrd Mat Min Mat Mat Distress Signals 5 | . . . 3 2 Communications Jammed . | . . . . . Distress Signals . | . . . . . Times Spotted 64 | . . 6 28 30 Peak Tracking Total 7 | . 1 2 6 7 Tactical Retreats 3 | . . 1 . 2 Traps | -11 -10 -10 -9 -8 ------- Run | Yrd Mat Min Mat Mat Traps Triggered 1 | . 1 . . . Indirectly . | . . . . . Trap Hack Attempts . | . . . . . Triggered . | . . . . . Disarmed . | . . . . . Reprogrammed . | . . . . . Reused 2 | . . . 2 . Traps Extracted . | . . . . . Installed 2 | . . . 2 . Triggered 2 | . . . 2 . Most Traps Carried 2 | . . 2 2 . Machines | -11 -10 -10 -9 -8 ---------- Run | Yrd Mat Min Mat Mat Machines Disabled 9 | . . 4 2 3 Max in Single Turn 3 | . . 3 2 1 Machines Repaired . | . . . . . Machines Dismantled . | . . . . . Machines Sabotaged . | . . . . . Overloaded Fab Kills . | . . . . . Hacking | -11 -10 -10 -9 -8 --------- Run | Yrd Mat Min Mat Mat Machines Accessed . | . . . . . Terminals . | . . . . . Fabricators . | . . . . . Repair Stations . | . . . . . Recycling Units . | . . . . . Scanalyzers . | . . . . . Garrison Access . | . . . . . Total Hacks . | . . . . . Successful . | . . . . . Failed . | . . . . . Catastrophic . | . . . . . Database Lockouts . | . . . . . Manual . | . . . . . Terminals . | . . . . . Fabricators . | . . . . . Repair Stations . | . . . . . Recycling Units . | . . . . . Scanalyzers . | . . . . . Garrison Access . | . . . . . Terminal Hacks . | . . . . . Fabricator Hacks . | . . . . . Repair Station Hacks . | . . . . . Recycling Unit Hacks . | . . . . . Scanalyzer . | . . . . . Garrison Access Hacks . | . . . . . Unauthorized Hacks . | . . . . . Terminals . | . . . . . Fabricators . | . . . . . Repair Stations . | . . . . . Recycling Units . | . . . . . Scanalyzers . | . . . . . Garrison Access . | . . . . . Data Cores Recovered . | . . . . . Used . | . . . . . Hacking Detections . | . . . . . Full Trace Events . | . . . . . Feedback Events . | . . . . . Feedback Blocked . | . . . . . Robot Schematics Acquired . | . . . . . Robots Built . | . . . . . Authchips . | . . . . . Time . | . . . . . Total Robot Build Rating . | . . . . . Part Schematics Acquired . | . . . . . Parts Built . | . . . . . Authchips . | . . . . . Time . | . . . . . Total Part Build Rating . | . . . . . Parts Repaired . | . . . . . Time . | . . . . . Parts Recycled . | . . . . . Recycled Matter . | . . . . . Retrieved Matter . | . . . . . Retrieved Components . | . . . . . Parts Scanalyzed . | . . . . . Part Schematics Acquired . | . . . . . Parts Damaged . | . . . . . Bothacking | -11 -10 -10 -9 -8 ------------ Run | Yrd Mat Min Mat Mat Used RIF Installer . | . . . . . Robots Hacked . | . . . . . Non-combat . | . . . . . Combat . | . . . . . Robot Hacks Applied . | . . . . . Relay Couplers Released . | . . . . . Fabnet Peak Effective % . | . . . . . Robots Rewired . | . . . . . Allies Hacked . | . . . . . Hacks Repelled . | . . . . . Allies | -11 -10 -10 -9 -8 -------- Run | Yrd Mat Min Mat Mat Total Allies . | . . . . . Largest Group . | . . . . . Highest-Rated Group . | . . . . . Highest-Rated Ally . | . . . . . Total Orders . | . . . . . Ally Attacks . | . . . . . Total Damage . | . . . . . Kills . | . . . . . Allies Corrupted . | . . . . . Allies Melted . | . . . . . Intel | -11 -10 -10 -9 -8 ------- Run | Yrd Mat Min Mat Mat Robot Analysis Total . | . . . . . Derelict Logs Recovered 1 | . . 1 . . Drone Launches . | . . . . . Drone Recoveries . | . . . . . Exploration | -11 -10 -10 -9 -8 ------------- Run | Yrd Mat Min Mat Mat Turns Passed 3115 | 55 158 1052 974 876 Spaces Moved 1519 | 40 125 613 403 338 Core 18 | 9 . . 1 8 Treads 298 | . . . 216 82 Legs 1203 | 31 125 613 186 248 Wheels . | . . . . . Hover . | . . . . . Flight . | . . . . . Fastest Speed 50 | 50 120 120 120 120 Average Speed 141 | 104 120 120 173 155 Slowest Speed 450 | 120 120 120 260 450 Overloaded Moves . | . . . . . Propulsion Burnouts . | . . . . . Robots Hopped . | . . . . . Cave-ins Triggered . | . . . . . Exploration Rate (%) 41 | 3 25 99 38 40 Regions Visited 4 Branch Regions 1 Pre-discovered Areas 1 | . . 1 . . Known Exits Taken 1 | . . . 1 . Unknown Exits Taken 3 | 1 1 1 . . Scrap Searched 1 | . . 1 . . Spaces Dug . | . . . . . Terrain Destroyed 218 | . . 59 47 112 Melee . | . . . . . Projectile . | . . . . . AOE 218 | . . 59 47 112 Terrain Rammed . | . . . . . Walls Destroyed . | . . . . . Machines Disabled . | . . . . . Actions | -11 -10 -10 -9 -8 --------- Run | Yrd Mat Min Mat Mat Total 2220 | 53 133 910 549 575 Wait 408 | . . 266 32 110 Move 1515 | 39 124 612 402 338 Hop . | . . . . . Pick Up 45 | 6 6 8 13 12 Fast Attach 11 | 2 . . 3 6 Attach 27 | 5 1 . 8 13 Detach 4 | 1 . . . 3 Swap 15 | . 1 4 7 3 Drop 23 | . 1 8 9 5 Fire 170 | . . 12 73 85 Melee . | . . . . . Ram . | . . . . . Kick . | . . . . . Crush . | . . . . . Escape Stasis . | . . . . . Rewire . | . . . . . Trap 2 | . . . 2 . Miscellaneous . | . . . . . Route ------- -11/Scrapyard -10/Materials -10/Mines (discovered 2 exits: [*Mat x2]) -9/Materials (discovered 2 exits: *Mat / Sto) -8/Materials History --------- Turn | Location | Event 12 | -11/Scrapyard | Discovered new exit (range 15) 56 | -11/Scrapyard | Entered Materials 200 | -10/Materials | Discovered new exit (range 7) 214 | -10/Materials | Entered Mines 229 | -10/Mines | Met a Derelict bent on vengeance 309 | -10/Mines | Received a Rocket Launcher from a helpful Derelict 310 | -10/Mines | Build established: Mutant 905 | -10/Mines | Learned location of 1 exit from Materials 917 | -10/Mines | Found a hidden stash of uninstalled traps 949 | -10/Mines | Learned location of Storage (-9) 949 | -10/Mines | Discovered new exit (range 5) 1127 | -10/Mines | Discovered new exit (range 6) 1266 | -10/Mines | Entered Materials 1266 | -9/Materials | Evolved 2 slots: Utility x2 1267 | -9/Materials | Identified exit to Storage 1637 | -9/Materials | Core integrity fell below 50% 1667 | -9/Materials | Lost 7 parts (1p1n1u4w) 1820 | -9/Materials | Core integrity fell below 20% 2172 | -9/Materials | Discovered new exit (range 14) 2238 | -9/Materials | Identified exit to Materials 2240 | -9/Materials | Entered another Materials area 2240 | -8/Materials | Evolved 2 slots: Utility x2 2578 | -8/Materials | Core integrity fell below 50% 2607 | -8/Materials | Lost 8 parts (3n3u2w) 2799 | -8/Materials | Garrison activated, responded to threat 2869 | -8/Materials | Core integrity fell below 20% 3116 | -8/Materials | Destroyed self with Mini Grenade Launcher Last Messages --------------- Destroyed Flight Unit. Atomic Centrifuge disabled. S-10 Pest destroyed. Acquired 4 matter. Acquired 3 matter. U-05 Engineer builds a Wall. S-10 Pest knocked back. Acquired 3 matter. S-10 Pest destroyed. Acquired 5 matter. R-06 Scavenger collects Lgt. Ion Engine. U-05 Engineer builds a Wall. K-01 Serf collects debris. U-05 Engineer builds a Wall. R-06 Scavenger collects Lgt. Ion Engine. U-05 Engineer lays Concrete. U-05 Engineer builds a Wall. U-05 Engineer lays Concrete. U-05 Engineer builds a Wall. [Achievement: Remodeling] Map ----- +----------------------------------------------------+ | ??????? ? # """ ### #????????????? | | ????????? # """ + #????????????? | | ??###### ## ### #????????????? | | ?? # ## #?# #????????????? | | # ## #?# #????????????? | | ?""""" / #####+####?# #????????????? | | ?""""" # ##### ##???# #????????????? | | ??"""" # # ##???# #????????????? | | ? ? # ### ###??# """"" +????????????? | | #### #??# """"" #????????????? | | T ## #???? """"" #????????????? | | ## [ #???? "??????#????????????? | | " ## " [[#???? "???????????????????? | | " ## = " [ #???# """"" ?????????????? | | " ### #???# """"" ?????????????? | | # #??## ??????????????? | | /## !!##??# #????????????? | | !#???# #????????????? | | ### #???# #????????????? | | #?# #???# #????????????? | | #?############# #???# #????????????? | | #???# # ##?# " " ##???????????? | | ##??# """ """ # # "G" #???????????? | | #???# """ """ """ #???????????? | | #???# """ """ +???????????? | | #???# """ """a Y @ #???????????? | | #???# Y /### #???????????? | | #???# * ] = #? ?? #???????????? | | #???# # # """ #?????????????????? | | #???########### ## """ #?????????????????? | | ############### + """ #?????????????????? | | !// ## #?????????????????? | | ##### !// ## """ #?????????????????? | | #???#!["" !// ### """ #?????????????????? | | #???# "" ]#?# """ #?????????????????? | | ????# "T #?# #?????????????????? | | ????# "" #?##########?????????????????? | | ????+ "" #????????????????????????????? | | ????# #????????????????????????????? | | ????# #????????????????????????????? | | ????##############????????????????????????????? | | ??????????????????????????????????????????????? | | ??????????????????????????????????????????????? | | ??????????????????????????????????????????????? | | | | | | | | | | | | | +----------------------------------------------------+ Best States ------------- Heat Dissipation 31 Energy Generation 14 Energy Capacity 160 Matter Stores 300 Matter Capacity 300 Sight Range 16 Terrain Scan Range 14 Terrain Scan Density 10 Additional Mass Support 6 Armor Coverage 300 Resistance: KI 20 Evasion (%) 55 Recoil Reduction 6 Item Schematics ----------------- None Robot Schematics ------------------ None Fabricated ------------ Nothing Alien Tech Used ----------------- None Achievements -------------- Remodeling Challenges ------------ None Game ------ Seed ActiveRefineryHammer Manual? 0 Play Time 00:49:02 Cumulative 11.2 hours Start 2024.04.01 @ 03:50:01 End 2024.04.01 @ 13:21:43 Sessions 5 Manual Loads 0 Difficulty Rogue Special Mode None Game No. 9 Rogue 9 Adventurer 0 Explorer 0 Win Type - Total 0 Types 0/0/0/0/0/0/0/0/0 Lore% 11 Gallery% 16 Achievement% 13 Wizard Run 0 Options --------- Layout 0 ASCII 0 Keyboard 0 Movement Mouse Keybinds 0 Fullscreen 1 Font 24/X11 Map View 76x50 Zoom Use 0% Tactical HUD 0 Map Filters NONE Filters NONE Steam 1 RUN: a41435ba-16fb-470f-ad30-56872b53037f